bitfinex-derivatives/quotes_SOLF0:USTF0_20250527
["timestamp","ask_amount","ask_price","bid_price","bid_amount"]
[1748316130504,0.04350799,173.32,173.29,0.04383089]
[1748316132609,5.81150799,173.32,173.29,0.04383089]
[1748316132813,0.04350799,173.32,173.29,0.04383089]
[1748316133011,2.0156,173.31,173.29,0.04383089]
[1748316138912,0.04350799,173.32,173.29,0.04383089]
[1748316139516,0.04350799,173.32,173.29,5.81263089]
[1748316141215,0.04350799,173.32,173.29,0.04383089]
[1748316141418,0.04350799,173.32,173.31,5.7683]
[1748316144209,0.04350799,173.32,173.3,127.6]
[1748316146318,0.04350799,173.32,173.3,133.3686]
[1748316147020,0.04350799,173.32,173.31,5.7683]
[1748316147817,0.04350799,173.32,173.29,0.04383089]
[1748316148016,2.62013273,173.31,173.19,625.62]
[1748316148214,127.64350799,173.32,173.19,625.62]
[1748316148215,3.9577,173.3,173.19,625.62]
[1748316148418,5.7703,173.26,173.2,5.7719]
[1748316148914,0.03725398,173.25,173.21,5.81153867]
[1748316149817,0.03725398,173.25,173.21,0.03993867]
[1748316150725,0.03725398,173.25,173.21,5.81153867]
[1748316151925,0.03725398,173.25,173.22,5.7712]
[1748316152522,0.03725398,173.25,173.21,0.03993867]
[1748316153126,5.80765398,173.25,173.21,0.03993867]
[1748316153823,0.03725398,173.25,173.21,0.03993867]
[1748316154322,0.03725398,173.25,173.21,5.81153867]
[1748316154926,0.03725398,173.25,173.21,0.03993867]
[1748316157435,0.03725398,173.25,173.21,5.81153867]
[1748316160235,0.03725398,173.25,173.22,5.7713]
[1748316160938,0.03725398,173.25,173.21,5.81153867]
[1748316162735,0.03725398,173.25,173.21,0.03993867]
[1748316163540,5.771,173.24,173.21,0.03993867]
[1748316166239,5.7711,173.23,173.21,0.03993867]
[1748316168145,5.7708,173.24,173.21,0.03993867]
[1748316168335,0.03725398,173.25,173.21,0.03993867]
[1748316169137,5.7711,173.23,173.21,0.03993867]
[1748316170049,0.03725398,173.25,173.21,0.03993867]
[1748316170441,5.7707,173.24,173.21,0.03993867]
[1748316171043,5.80765398,173.25,173.21,0.03993867]
[1748316174343,0.03725398,173.25,173.21,0.03993867]
[1748316175646,0.03725398,173.25,173.21,5.81163867]
[1748316177050,0.03725398,173.25,173.23,5.771]
[1748316178051,0.03725398,173.25,173.21,0.03993867]
[1748316178554,0.03725398,173.25,173.21,5.81153867]
[1748316178848,0.03725398,173.25,173.21,0.03993867]
[1748316179251,0.03725398,173.25,173.21,5.81153867]
[1748316180552,0.03725398,173.25,173.22,5.7713]
[1748316184253,5.80775398,173.25,173.21,0.03993867]
[1748316184453,0.03725398,173.25,173.21,0.03993867]
[1748316184960,5.80765398,173.25,173.21,0.03993867]
[1748316185157,0.03725398,173.25,173.21,0.03993867]
[1748316186359,0.03725398,173.25,173.22,5.7713]
[1748316186662,0.03725398,173.25,173.21,0.03993867]
[1748316186965,0.03725398,173.25,173.22,5.7713]
[1748316188655,0.03725398,173.25,173.21,5.81143867]
[1748316191460,0.03725398,173.25,173.22,5.7712]
[1748316191667,0.03725398,173.25,173.21,0.03993867]
[1748316192065,0.03725398,173.25,173.21,5.81153867]
[1748316192264,2.64433411,173.24,173.21,5.81153867]
[1748316192463,0.03725398,173.25,173.21,5.81153867]
[1748316192665,2.64702384,173.24,173.21,5.81153867]
[1748316192859,0.03725398,173.25,173.21,5.81153867]
[1748316193059,2.64698846,173.24,173.21,5.81153867]
[1748316193264,0.03725398,173.25,173.21,5.81153867]
[1748316193464,2.64713523,173.24,173.21,5.81153867]
[1748316193664,5.80775398,173.25,173.21,5.81153867]
[1748316193867,2.64602889,173.24,173.21,5.81153867]
[1748316194066,5.80775398,173.25,173.21,5.81153867]
[1748316194267,2.64603229,173.24,173.21,5.81153867]
[1748316194467,5.80775398,173.25,173.21,5.81153867]
[1748316194668,2.6460608,173.24,173.21,5.81153867]
[1748316194870,5.80775398,173.25,173.21,5.81153867]
[1748316195066,2.64604755,173.24,173.21,5.81153867]
[1748316195266,5.80775398,173.25,173.21,0.03993867]
[1748316195468,2.64603415,173.24,173.21,0.03993867]
[1748316195668,5.80775398,173.25,173.21,0.03993867]
[1748316195970,2.64604411,173.24,173.21,0.03993867]
[1748316196169,5.7707,173.24,173.21,0.03993867]
[1748316196470,0.03725398,173.25,173.21,5.81153867]
[1748316196669,2.6460078,173.24,173.21,5.81153867]
[1748316196972,5.80785398,173.25,173.21,0.03993867]
[1748316197264,2.64598689,173.24,173.21,0.03993867]
[1748316197466,0.03725398,173.25,173.21,0.03993867]
[1748316197669,2.6461459,173.24,173.21,0.03993867]
[1748316197869,2.6461459,173.23,173.21,0.03993867]
[1748316198070,5.7708,173.24,173.21,0.03993867]
[1748316198269,2.64611501,173.23,173.21,0.03993867]
[1748316198568,5.7708,173.24,173.21,0.03993867]
[1748316198769,2.64606622,173.23,173.21,0.03993867]
[1748316199070,5.7708,173.24,173.21,0.03993867]
[1748316199266,2.64606951,173.23,173.21,0.03993867]
[1748316199468,5.771,173.23,173.21,0.03993867]
[1748316199668,2.64609391,173.22,173.21,0.03993867]
[1748316200271,2.64601689,173.22,173.21,0.03993867]
[1748316201677,2.64590853,173.22,173.21,0.03993867]
[1748316202274,5.7708,173.24,173.21,0.03993867]
[1748316202577,2.64594387,173.23,173.21,0.03993867]
[1748316202774,5.7708,173.24,173.21,0.03993867]
[1748316202979,2.64594255,173.23,173.21,0.03993867]
[1748316203169,5.7708,173.24,173.21,0.03993867]
[1748316203370,2.64593952,173.23,173.21,0.03993867]
[1748316203665,5.7708,173.24,173.21,0.03993867]
[1748316203870,2.64592627,173.23,173.21,0.03993867]
[1748316204071,5.7711,173.23,173.21,0.03993867]
[1748316204382,2.64595048,173.22,173.21,0.03993867]
[1748316204569,5.7711,173.23,173.21,0.03993867]
[1748316204765,5.7708,173.24,173.21,0.03993867]
[1748316204966,2.6459487,173.23,173.21,0.03993867]
[1748316205166,0.03725398,173.25,173.21,0.03993867]
[1748316205374,8.41675261,173.24,173.21,0.03993867]
[1748316205575,2.64585261,173.23,173.21,0.03993867]
[1748316205773,5.7709,173.24,173.21,0.03993867]
[1748316205973,2.6458813,173.23,173.21,0.03993867]
[1748316206273,5.7709,173.24,173.21,0.03993867]
[1748316206473,2.64056698,173.23,173.21,0.03993867]
[1748316206675,5.7709,173.24,173.21,0.03993867]
[1748316206973,2.640569,173.23,173.21,0.03993867]
[1748316207174,5.7709,173.24,173.21,0.03993867]
[1748316207476,2.64056704,173.23,173.21,0.03993867]
[1748316207778,5.7709,173.24,173.21,0.03993867]
[1748316207968,2.6405631,173.23,173.21,0.03993867]
[1748316208175,0.03725398,173.25,173.21,0.03993867]
[1748316208374,2.64068176,173.24,173.21,0.03993867]
[1748316208572,2.64068176,173.23,173.21,0.03993867]
[1748316208768,0.03725398,173.25,173.21,0.03993867]
[1748316208979,2.64070175,173.24,173.21,0.03993867]
[1748316209181,2.64070175,173.23,173.21,0.03993867]
[1748316209381,5.7707,173.24,173.21,5.81153867]
[1748316209581,2.64075498,173.23,173.21,5.81153867]
[1748316209780,5.7707,173.24,173.21,5.81153867]
[1748316210281,2.64090518,173.23,173.21,5.81153867]
[1748316210581,5.80765398,173.25,173.21,5.81153867]
[1748316210780,2.64091841,173.24,173.21,5.81153867]
[1748316210982,2.64091841,173.23,173.21,5.81153867]
[1748316211281,5.80765398,173.25,173.21,5.81153867]
[1748316211582,2.6412542,173.24,173.21,5.81153867]
[1748316211781,2.6412542,173.23,173.21,5.81153867]
[1748316211982,5.80765398,173.25,173.21,5.81153867]
[1748316212282,8.4119542,173.24,173.21,5.81153867]
[1748316212579,2.6412542,173.23,173.21,5.81153867]
[1748316212880,5.7711,173.23,173.21,0.03993867]
[1748316213083,2.64158158,173.22,173.21,0.03993867]
[1748316213980,2.64187615,173.22,173.21,0.03993867]
[1748316215780,2.64226119,173.22,173.21,0.03993867]
[1748316216082,0.03725398,173.25,173.21,0.03993867]
[1748316216280,2.64196194,173.24,173.21,0.03993867]
[1748316216579,0.03725398,173.25,173.21,0.03993867]
[1748316216770,0.03725398,173.25,173.23,5.771]
[1748316216971,0.03725398,173.25,173.21,0.03993867]
[1748316217385,2.64169441,173.24,173.21,0.03993867]
[1748316217585,2.64169441,173.23,173.21,0.03993867]
[1748316217883,0.03725398,173.25,173.21,0.03993867]
[1748316218182,2.64208093,173.24,173.21,0.03993867]
[1748316218381,2.64208093,173.23,173.21,5.81153867]
[1748316218581,5.7708,173.24,173.21,5.81153867]
[1748316218782,2.64232285,173.23,173.21,5.81153867]
[1748316218981,5.80765398,173.25,173.21,5.81153867]
[1748316219182,2.64232351,173.24,173.21,5.81153867]
[1748316219378,2.64232351,173.23,173.21,5.81153867]
[1748316219588,5.80765398,173.25,173.21,5.81153867]
[1748316219882,2.6425486,173.24,173.21,5.81153867]
[1748316220082,2.6425486,173.23,173.21,5.81153867]
[1748316220271,5.7707,173.24,173.21,0.03993867]
[1748316220477,2.64254789,173.23,173.21,0.03993867]
[1748316220780,5.7707,173.24,173.21,0.03993867]
[1748316220980,2.64257666,173.23,173.21,0.03993867]
[1748316221181,5.7707,173.24,173.21,0.03993867]
[1748316221384,2.64257707,173.23,173.21,0.03993867]
[1748316221582,5.7707,173.24,173.21,0.03993867]
[1748316221880,2.6425645,173.23,173.21,0.03993867]
[1748316222080,2.6425645,173.22,173.21,0.03993867]
[1748316223380,8.41400231,173.22,173.21,0.03993867]
[1748316224978,5.7713,173.22,173.21,0.03993867]
[1748316225181,8.41342227,173.22,173.21,0.03993867]
[1748316225685,2.64212227,173.22,173.21,0.03993867]
[1748316226582,8.41342227,173.22,173.21,0.03993867]
[1748316226985,8.41286154,173.22,173.21,0.03993867]
[1748316227486,5.7724,173.19,173.15,127.02]
[1748316227683,2.64153569,173.18,173.15,127.02]
[1748316227882,4.70930945,173.22,173.15,127.02]
[1748316228081,5.7729,173.18,173.15,127.02]
[1748316228283,2.64400495,173.17,173.15,127.02]
[1748316228585,5.81510516,173.18,173.15,127.02]
[1748316228885,2.64292455,173.17,173.15,127.02]
[1748316229084,5.81510516,173.18,173.15,127.02]
[1748316229385,2.64288712,173.17,173.15,127.02]
[1748316229583,0.04220516,173.18,173.15,127.02]
[1748316230986,0.04220516,173.18,173.17,5.773]
[1748316236387,0.04220516,173.18,173.16,5.7733]
[1748316238688,0.04220516,173.18,173.17,5.773]
[1748316239190,0.04220516,173.18,173.15,127.02]
[1748316239387,0.04220516,173.18,173.16,5.7733]
[1748316239885,0.04220516,173.18,173.15,127.02]
[1748316240085,0.04220516,173.18,173.15,132.7935]
[1748316240689,0.04220516,173.18,173.16,5.7731]
[1748316241086,0.04220516,173.18,173.15,127.02]
[1748316241385,0.04220516,173.18,173.16,5.7733]
[1748316244193,0.04220516,173.18,173.15,132.7936]
[1748316244391,0.04220516,173.18,173.15,127.02]
[1748316244791,0.04220516,173.18,173.15,132.7935]
[1748316245697,0.04220516,173.18,173.15,127.02]
[1748316247301,0.04220516,173.18,173.17,5.773]
[1748316252901,0.04220516,173.18,173.16,5.7732]
[1748316253596,0.04220516,173.18,173.17,5.773]
[1748316258601,0.04220516,173.18,173.15,127.02]
[1748316259302,0.04220516,173.18,173.16,5.7733]
[1748316259996,0.04220516,173.18,173.15,127.02]
[1748316260301,5.81510516,173.18,173.15,127.02]
[1748316261502,0.04220516,173.18,173.15,132.7937]
[1748316262001,5.81490516,173.18,173.15,127.02]
[1748316263100,0.04220516,173.18,173.15,127.02]
[1748316265306,5.81500516,173.18,173.15,127.02]
[1748316266206,2.64168973,173.17,173.15,127.02]
[1748316266406,5.81500516,173.18,173.15,127.02]
[1748316267709,8.41466622,173.17,173.15,127.02]
[1748316268009,5.773,173.17,173.15,127.02]
[1748316271919,5.7733,173.16,173.15,127.02]
[1748316272120,5.7733,173.16,173.12,5.7745]
[1748316273421,0.04220516,173.18,173.11,127.6741657]
[1748316273618,2.64252489,173.17,173.11,127.6741657]
[1748316273818,2.64252489,173.16,173.11,127.6741657]
[1748316274015,5.531544,173.15,173.11,127.6741657]
[1748316274213,11.305544,173.15,173.11,127.6741657]
[1748316275515,11.305544,173.15,173.11,132.4749]
[1748316275716,5.531544,173.15,173.11,132.4749]
[1748316276720,13.253444,173.17,173.11,126.7]
[1748316276921,2.64158604,173.16,173.11,126.7]
[1748316277220,7.480344,173.17,173.11,126.7]
[1748316277420,2.64150844,173.16,173.11,126.7]
[1748316277621,5.7736,173.16,173.12,5.7746]
[1748316279722,5.7736,173.16,173.13,5.7743]
[1748316281120,5.7737,173.15,173.11,126.7]
[1748316281326,7.480344,173.17,173.11,126.7]
[1748316281523,5.531544,173.15,173.11,126.7]
[1748316281819,5.7743,173.14,173.11,126.7]
[1748316282017,5.81086923,173.14,173.11,126.7]
[1748316284022,0.03656923,173.14,173.11,132.4748]
[1748316285028,0.03656923,173.14,173.11,126.7]
[1748316285923,5.81066923,173.14,173.11,126.7]
[1748316288233,0.03656923,173.14,173.11,126.7]
[1748316289026,5.81056923,173.14,173.11,126.7]
[1748316290124,0.03656923,173.14,173.11,126.7]
[1748316290425,5.56811323,173.14,173.11,126.7]
[1748316290929,11.34241323,173.14,173.11,126.7]
[1748316292728,5.56811323,173.14,173.11,132.475]
[1748316295329,11.34221323,173.14,173.11,132.475]
[1748316296225,5.7745,173.13,173.11,126.7]
[1748316297025,11.34221323,173.14,173.11,126.7]
[1748316297527,5.7743,173.13,173.11,126.7]
[1748316299826,11.34221323,173.14,173.11,126.7]
[1748316302133,5.56811323,173.14,173.11,126.7]
[1748316302637,5.7743,173.13,173.11,126.7]
[1748316303134,5.56811323,173.14,173.11,126.7]
[1748316303538,0.03656923,173.14,173.11,126.7]
[1748316304839,0.03656923,173.14,173.11,132.4748]
[1748316306231,0.03656923,173.14,173.11,126.7]
[1748316308341,0.03656923,173.14,173.12,5.7744]
[1748316309839,0.03656923,173.14,173.11,132.4749]
[1748316310639,0.03656923,173.14,173.12,5.7746]
[1748316312743,0.03656923,173.14,173.11,132.4749]
[1748316312945,5.81066923,173.14,173.11,126.7]
[1748316313242,0.03656923,173.14,173.11,126.7]
[1748316313543,8.41820906,173.13,173.11,126.7]
[1748316313740,5.7746,173.13,173.11,126.7]
[1748316314532,5.7746,173.13,173.09,5.7756]
[1748316315341,5.81056923,173.14,173.1,5.7752]
[1748316315647,2.64454878,173.13,173.1,5.7752]
[1748316315846,5.81056923,173.14,173.1,5.7752]
[1748316316042,2.64454878,173.13,173.11,5.775]
[1748316316239,0.03656923,173.14,173.11,5.775]
[1748316316438,2.64456102,173.13,173.11,5.775]
[1748316316638,0.03656923,173.14,173.11,5.775]
[1748316316843,2.64511926,173.13,173.11,5.775]
[1748316317041,0.03656923,173.14,173.11,5.775]
[1748316317348,2.64511926,173.13,173.1,5.7752]
[1748316317538,5.81056923,173.14,173.1,5.7752]
[1748316317734,2.64545204,173.13,173.12,5.7747]
[1748316318041,0.03656923,173.14,173.1,5.531544]
[1748316318548,0.03656923,173.14,173.13,5.7743]
[1748316318739,2.68219101,173.14,173.13,5.7743]
[1748316318946,0.03656923,173.14,173.13,5.7743]
[1748316320446,5.531544,173.19,173.12,131.471544]
[1748316320640,2.64535619,173.18,173.12,125.94]
[1748316320947,11.11177339,173.22,173.17,5.531544]
[1748316321145,11.11177339,173.22,173.19,5.7721]
[1748316321550,2.64529979,173.21,173.19,5.80951765]
[1748316321946,2.64529979,173.2,173.19,5.80951765]
[1748316322146,5.37680646,173.22,173.19,5.80951765]
[1748316322844,5.37680646,173.22,173.19,0.03741765]
[1748316323043,0.03663307,173.22,173.19,0.03741765]
[1748316323239,0.03663307,173.22,173.19,5.56896165]
[1748316324048,0.03663307,173.22,173.19,0.03741765]
[1748316324248,0.03663307,173.22,173.2,5.772]
[1748316325549,0.03663307,173.22,173.19,5.80961765]
[1748316325751,0.03663307,173.22,173.19,0.03741765]
[1748316326449,5.80823307,173.22,173.19,0.03741765]
[1748316327949,5.7717,173.21,173.19,0.03741765]
[1748316328142,0.03663307,173.22,173.19,0.03741765]
[1748316329352,5.7717,173.21,173.19,0.03741765]
[1748316329554,0.03663307,173.22,173.19,0.03741765]
[1748316329751,5.7717,173.21,173.19,0.03741765]
[1748316331056,0.03663307,173.22,173.19,0.03741765]
[1748316332252,5.7719,173.21,173.19,0.03741765]
[1748316334652,5.80803307,173.22,173.19,0.03741765]
[1748316335753,0.03663307,173.22,173.19,0.03741765]
[1748316336555,0.03663307,173.22,173.21,5.7717]
[1748316340958,0.03663307,173.22,173.2,5.7719]
[1748316341559,0.03663307,173.22,173.19,5.80971765]
[1748316341951,0.03663307,173.22,173.19,0.03741765]
[1748316342158,5.7719,173.21,173.19,0.03741765]
[1748316342459,0.03663307,173.22,173.19,0.03741765]
[1748316342660,5.80823307,173.22,173.19,0.03741765]
[1748316344060,5.7717,173.21,173.19,0.03741765]
[1748316344260,0.03663307,173.22,173.19,0.03741765]
[1748316344761,5.80803307,173.22,173.19,0.03741765]
[1748316345061,0.03663307,173.22,173.19,5.80971765]
[1748316345562,0.03663307,173.22,173.19,0.03741765]
[1748316346468,0.03663307,173.22,173.2,5.772]
[1748316349261,0.03663307,173.22,173.21,5.7717]
[1748316352274,0.03663307,173.22,173.2,5.7719]
[1748316353072,0.03663307,173.22,173.21,5.7717]
[1748316356573,0.03663307,173.22,173.2,5.7719]
[1748316357974,0.03663307,173.22,173.19,5.80961765]
[1748316359177,0.03663307,173.22,173.2,5.7719]
[1748316359373,0.03663307,173.22,173.19,0.03741765]
[1748316359572,5.80793307,173.22,173.19,0.03741765]
[1748316359876,0.03663307,173.22,173.19,0.03741765]
[1748316360671,0.03663307,173.22,173.19,5.80961765]
[1748316361472,0.03663307,173.22,173.19,0.03741765]
[1748316362276,5.7719,173.21,173.19,0.03741765]
[1748316362478,0.03663307,173.22,173.19,0.03741765]
[1748316363081,0.03663307,173.22,173.19,5.80971765]
[1748316363282,2.65909133,173.21,173.19,5.80971765]
[1748316363478,0.03663307,173.22,173.19,5.80971765]
[1748316363678,2.65920876,173.21,173.19,5.80971765]
[1748316363879,0.03663307,173.22,173.19,5.80971765]
[1748316364079,2.65919615,173.21,173.19,5.80971765]
[1748316364281,0.03663307,173.22,173.19,5.80971765]
[1748316364479,2.66078772,173.21,173.19,5.80971765]
[1748316364674,0.03663307,173.22,173.19,5.80971765]
[1748316364878,2.66089282,173.21,173.19,5.80971765]
[1748316365078,0.03663307,173.22,173.19,5.80971765]
[1748316365283,2.66088946,173.21,173.19,5.80971765]
[1748316365478,2.66088946,173.2,173.19,5.80971765]
[1748316365882,2.66088946,173.2,173.19,0.03741765]
[1748316366381,2.66316386,173.2,173.19,0.03741765]
[1748316368283,2.66337281,173.2,173.19,0.03741765]
[1748316368981,8.43537281,173.2,173.19,0.03741765]
[1748316370088,2.66337281,173.2,173.19,0.03741765]
[1748316373793,2.66170499,173.2,173.19,0.03741765]
[1748316375590,2.66129677,173.2,173.19,0.03741765]
[1748316377995,5.80813307,173.22,173.19,0.03741765]
[1748316378290,0.03663307,173.22,173.19,0.03741765]
[1748316379095,0.03663307,173.22,173.21,5.7717]
[1748316391807,3.307e-05,173.22,173.21,5.7717]
[1748316392309,5.7687,173.3,173.19,0.03741765]
[1748316392605,2.65424421,173.29,173.22,8.63670105]
[1748316392807,2.65424421,173.28,173.23,234.6]
[1748316393008,5.7687,173.3,173.26,5.7698]
[1748316393198,2.65409174,173.29,173.26,5.7698]
[1748316393403,2.65409174,173.28,173.26,5.81047177]
[1748316393700,5.80695492,173.29,173.26,5.81047177]
[1748316396402,0.03795492,173.29,173.26,5.81047177]
[1748316396813,0.03795492,173.29,173.27,5.7696]
[1748316397913,0.03795492,173.29,173.28,5.7693]
[1748316402613,0.03795492,173.29,173.27,130.7496]
[1748316403313,5.7693,173.28,173.27,234.56]
[1748316403513,0.03795492,173.29,173.27,234.56]
[1748316404218,5.80715492,173.29,173.27,234.56]
[1748316405419,0.03795492,173.29,173.27,234.56]
[1748316405919,0.03795492,173.29,173.28,5.7693]
[1748316422439,0.03795492,173.29,173.28,115.3293]
[1748316422641,0.03795492,173.29,173.28,109.56]
[1748316422833,0.03795492,173.29,173.27,130.7495]
[1748316423037,0.03795492,173.29,173.23,124.46]
[1748316423340,0.03795492,173.29,173.24,109.56]
[1748316423841,5.80705492,173.29,173.25,5.7702]
[1748316424140,5.80705492,173.29,173.25,5.80357896]
[1748316425541,0.03795492,173.29,173.25,5.80357896]
[1748316426043,5.80715492,173.29,173.25,115.36357896]
[1748316426442,0.03795492,173.29,173.25,109.59337896]
[1748316426638,8.42452978,173.28,173.25,109.59337896]
[1748316426843,5.7696,173.28,173.25,109.59337896]
[1748316428242,7.7359,173.28,173.25,109.59337896]
[1748316428544,5.7697,173.27,173.25,109.59337896]
[1748316429940,5.7697,173.27,173.25,0.03337896]
[1748316430346,7.7357,173.28,173.25,0.03337896]
[1748316430545,1.9663,173.28,173.25,0.03337896]
[1748316431747,5.7699,173.27,173.25,0.03337896]
[1748316432148,1.9663,173.28,173.25,0.03337896]
[1748316432546,7.7359,173.28,173.25,5.80347896]
[1748316432745,7.7359,173.28,173.25,0.03337896]
[1748316433047,1.9663,173.28,173.25,0.03337896]
[1748316433247,5.7699,173.27,173.25,0.03337896]
[1748316438352,7.7357,173.28,173.25,0.03337896]
[1748316438554,2.65321409,173.27,173.25,5.80367896]
[1748316438753,7.7357,173.28,173.25,5.80367896]
[1748316439749,1.9663,173.28,173.26,5.7699]
[1748316439954,0.03795492,173.29,173.27,5.52312387]
[1748316440350,0.03795492,173.29,173.28,5.7693]
[1748316440554,2.69096077,173.29,173.28,5.7693]
[1748316440855,0.03795492,173.29,173.28,5.7693]
[1748316441352,5.767,173.35,173.31,5.7681]
[1748316441556,2.6524707,173.34,173.31,129.54312387]
[1748316441753,5.767,173.35,173.31,129.54312387]
[1748316442458,5.80917244,173.35,173.32,5.768]
[1748316442857,0.04217244,173.35,173.32,5.768]
[1748316443560,5.80917244,173.35,173.32,5.768]
[1748316444158,5.80917244,173.35,173.31,129.83156352]
[1748316444655,0.04217244,173.35,173.31,124.06326352]
[1748316444960,4.69679049,173.34,173.31,124.06326352]
[1748316445160,2.65099049,173.33,173.31,124.06326352]
[1748316445359,2.0458,173.34,173.31,0.04326352]
[1748316445659,5.7683,173.32,173.28,5.7692]
[1748316446163,5.7685,173.31,173.28,5.7692]
[1748316446358,2.0458,173.34,173.27,124.02]
[1748316446555,0.04447064,173.32,173.29,0.02807036]
[1748316446959,5.7683,173.31,173.29,0.02807036]
[1748316449658,0.04447064,173.32,173.29,0.02807036]
[1748316450158,0.04447064,173.32,173.3,5.7687]
[1748316450363,0.04447064,173.32,173.29,0.02807036]
[1748316451364,0.04447064,173.32,173.3,5.7686]
[1748316451863,0.04447064,173.32,173.31,5.7683]
[1748316453566,0.04447064,173.32,173.3,5.7686]
[1748316454666,0.04447064,173.32,173.31,5.7683]
[1748316458168,0.04447064,173.32,173.3,5.7686]
[1748316460664,0.04447064,173.32,173.31,5.7683]
[1748316475583,2.69585689,173.32,173.29,0.02807036]
[1748316475781,8.16935008,173.31,173.29,0.02807036]
[1748316475979,8.42018397,173.3,173.29,0.02807036]
[1748316476176,2.65148397,173.3,173.24,6.49212953]
[1748316476378,8.1694478,173.29,173.24,0.9741657]
[1748316476677,5.7699,173.27,173.24,0.9741657]
[1748316477182,0.04171807,173.27,173.24,6.49212953]
[1748316478179,0.04171807,173.27,173.24,0.9741657]
[1748316478377,0.04171807,173.27,173.26,5.77]
[1748316491985,0.04171807,173.27,173.26,128.91]
[1748316499397,0.04171807,173.27,173.26,238.49]
[1748316501106,0.04171807,173.27,173.26,123.14]
[1748316501500,5.81141807,173.27,173.26,123.14]
[1748316501804,0.04171807,173.27,173.26,123.14]
[1748316508104,0.04171807,173.27,173.26,128.91]
[1748316508611,0.04171807,173.27,173.26,123.14]
[1748316514813,5.81141807,173.27,173.26,123.14]
[1748316515117,8.4627781,173.27,173.26,123.14]
[1748316515719,2.6930781,173.27,173.26,123.14]
[1748316519218,8.4627781,173.27,173.26,123.14]
[1748316521127,2.6930781,173.27,173.26,123.14]
[1748316521924,5.81141807,173.27,173.26,123.14]
[1748316522122,8.46543163,173.27,173.26,123.14]
[1748316522926,8.46543163,173.27,173.23,5.771]
[1748316523128,2.65401356,173.26,173.23,5.771]
[1748316523425,5.81141807,173.27,173.23,5.771]
[1748316523626,2.6536194,173.26,173.23,5.771]
[1748316523826,5.81141807,173.27,173.23,5.771]
[1748316524026,2.65362246,173.26,173.23,5.771]
[1748316524224,5.81141807,173.27,173.23,5.771]
[1748316524527,2.65354153,173.26,173.23,5.771]
[1748316524727,2.65354153,173.25,173.22,122.72]
[1748316524922,2.65354153,173.24,173.22,122.72]
[1748316525122,2.65354153,173.23,173.22,122.72]
[1748316525427,5.7708,173.24,173.22,122.72]
[1748316525622,2.65304082,173.23,173.22,122.72]
[1748316525826,2.65306177,173.23,173.22,122.72]
[1748316526028,8.42406177,173.23,173.22,122.72]
[1748316526427,5.771,173.23,173.19,5.7722]
[1748316526623,0.03640302,173.23,173.18,122.72]
[1748316526930,2.65256079,173.22,173.18,122.72]
[1748316527130,5.55877277,173.23,173.18,122.72]
[1748316527327,5.772,173.21,173.18,122.72]
[1748316528329,5.772,173.21,173.18,128.4926]
[1748316528522,5.772,173.21,173.18,122.72]
[1748316528723,5.7714,173.22,173.18,122.72]
[1748316529024,0.03640302,173.23,173.18,128.4925]
[1748316529226,5.55877277,173.23,173.18,122.72]
[1748316529524,5.52236975,173.21,173.18,122.72]
[1748316530225,5.7723,173.19,173.18,122.72]
[1748316532334,5.7721,173.2,173.18,122.72]
[1748316533032,11.29416975,173.21,173.18,122.72]
[1748316536134,5.772,173.2,173.18,122.72]
[1748316538231,11.29416975,173.21,173.18,122.72]
[1748316538436,5.52236975,173.21,173.18,122.72]
[1748316539342,5.772,173.2,173.18,122.72]
[1748316539833,2.00710302,173.23,173.18,122.72]
[1748316540040,0.03640302,173.23,173.18,122.72]
[1748316541342,5.80740302,173.23,173.2,5.772]
[1748316542532,0.03640302,173.23,173.21,5.7716]
[1748316542940,0.03640302,173.23,173.2,5.52236975]
[1748316543540,0.03640302,173.23,173.18,128.24236975]
[1748316543741,0.03640302,173.23,173.21,5.7714]
[1748316545049,0.03640302,173.23,173.22,5.7713]
[1748316545847,0.03640302,173.23,173.22,128.5313]
[1748316552857,3.02e-06,173.23,173.22,128.5313]
[1748316556555,2.0946,173.34,173.3,5.7687]
[1748316556753,2.64546389,173.33,173.3,5.7687]
[1748316556961,2.64546389,173.32,173.3,5.7687]
[1748316557161,2.0946,173.34,173.3,5.7687]
[1748316557459,2.6448243,173.33,173.3,5.7687]
[1748316557659,0.04121376,173.33,173.3,5.80510302]
[1748316557860,2.6448308,173.32,173.3,5.80510302]
[1748316558063,0.04121376,173.33,173.3,5.80510302]
[1748316558362,2.64492006,173.32,173.3,5.80510302]